[Event "Titled Tuesday Blitz October 04 Early 2022"]
[White "Shimanov, Aleksandr"]
[Black "Bilych, Olexiy"]
[WhiteFideId "4198603"]
[BlackFideId "14156504"]
[WhiteElo "2605"]
[BlackElo "2320"]
[Result "1-0"]
[Round "05"]
[TimeControl "180+1"]
[Date "2022.10.04"]
[WhiteClock "0:01:50"]
[BlackClock "0:00:20"]

1. e4 {[%clk 0:03:00]}  e5 {[%clk 0:02:48]} 2. Nf3 {[%clk 0:03:00]}  Nc6 {[%clk 0:02:48]} 3. Nc3 {[%clk 0:03:01]}  Nf6 {[%clk 0:02:47]} 4. h3 {[%clk 0:03:01]}  d5 {[%clk 0:02:44]} 5. exd5 {[%clk 0:03:02]}  Nxd5 {[%clk 0:02:45]} 6. Bb5 {[%clk 0:03:02]}  Nxc3 {[%clk 0:02:45]} 7. bxc3 {[%clk 0:03:03]}  Bd6 {[%clk 0:02:46]} 8. O-O {[%clk 0:03:04]}  O-O {[%clk 0:02:45]} 9. Re1 {[%clk 0:03:04]}  Qf6 {[%clk 0:02:37]} 10. d4 {[%clk 0:03:02]}  exd4 {[%clk 0:02:37]} 11. cxd4 {[%clk 0:03:03]}  h6 {[%clk 0:02:32]} 12. Rb1 {[%clk 0:03:03]}  Bf5 {[%clk 0:02:29]} 13. Bb2 {[%clk 0:03:03]}  Nb4 {[%clk 0:01:57]} 14. Ba4 {[%clk 0:02:29]}  Nd5 {[%clk 0:01:20]} 15. Ne5 {[%clk 0:02:04]}  Nf4 {[%clk 0:00:58]} 16. Qf3 {[%clk 0:02:03]}  Qg5 {[%clk 0:00:50]} 17. Bc1 {[%clk 0:01:50]}  Nxh3+ {[%clk 0:00:26]} 18. Qxh3 {[%clk 0:01:50]}  Bxh3 {[%clk 0:00:20]} 19. Bxg5 {[%clk 0:01:50]} 1-0


[Site "https://www.chess.com"]

[Event "Titled Tuesday Blitz October 04 Early 2022"]
[White "Svane, Frederik"]
[Black "Rastbod, Ali"]
[WhiteFideId "12923044"]
[BlackFideId "12567477"]
[WhiteElo "2466"]
[BlackElo "2248"]
[Result "1-0"]
[Round "05"]
[TimeControl "180+1"]
[Date "2022.10.04"]
[WhiteClock "0:00:09"]
[BlackClock "0:00:08"]

1. e3 {[%clk 0:03:00]}  e5 {[%clk 0:02:57]} 2. e4 {[%clk 0:02:58]}  Nf6 {[%clk 0:02:48]} 3. Nf3 {[%clk 0:02:57]}  Nxe4 {[%clk 0:02:41]} 4. Nc3 {[%clk 0:02:57]}  Nxc3 {[%clk 0:02:36]} 5. dxc3 {[%clk 0:02:58]}  d6 {[%clk 0:02:34]} 6. Bc4 {[%clk 0:02:57]}  Be7 {[%clk 0:02:34]} 7. h4 {[%clk 0:02:56]}  Be6 {[%clk 0:02:32]} 8. Bxe6 {[%clk 0:02:43]}  fxe6 {[%clk 0:02:33]} 9. Ng5 {[%clk 0:02:44]}  Bxg5 {[%clk 0:02:31]} 10. hxg5 {[%clk 0:02:41]}  g6 {[%clk 0:02:28]} 11. Qd3 {[%clk 0:02:37]}  O-O {[%clk 0:02:23]} 12. Bd2 {[%clk 0:02:28]}  Qd7 {[%clk 0:02:23]} 13. Rh6 {[%clk 0:02:15]}  Rf7 {[%clk 0:01:37]} 14. O-O-O {[%clk 0:02:12]}  Qe7 {[%clk 0:01:38]} 15. Rdh1 {[%clk 0:02:10]}  Nd7 {[%clk 0:01:38]} 16. Qxg6+ {[%clk 0:02:09]}  Rg7 {[%clk 0:01:15]} 17. Qh5 {[%clk 0:02:08]}  Nf8 {[%clk 0:01:14]} 18. Rf6 {[%clk 0:01:41]}  Ng6 {[%clk 0:01:14]} 19. Qh3 {[%clk 0:01:37]}  Re8 {[%clk 0:01:13]} 20. g3 {[%clk 0:01:34]}  e4 {[%clk 0:01:02]} 21. Be3 {[%clk 0:01:29]}  c5 {[%clk 0:01:01]} 22. c4 {[%clk 0:01:03]}  b6 {[%clk 0:00:50]} 23. Bd2 {[%clk 0:00:47]}  d5 {[%clk 0:00:38]} 24. f3 {[%clk 0:00:19]}  d4 {[%clk 0:00:15]} 25. fxe4 {[%clk 0:00:18]}  Ne5 {[%clk 0:00:15]} 26. Bf4 {[%clk 0:00:14]}  Nxc4 {[%clk 0:00:15]} 27. e5 {[%clk 0:00:14]}  Ne3 {[%clk 0:00:09]} 28. g6 {[%clk 0:00:10]}  Nf5 {[%clk 0:00:06]} 29. g4 {[%clk 0:00:07]}  Ne3 {[%clk 0:00:05]} 30. Bg5 {[%clk 0:00:07]}  Qd7 {[%clk 0:00:03]} 31. Bh6 {[%clk 0:00:05]}  Rxg6 {[%clk 0:00:03]} 32. Rxg6+ {[%clk 0:00:05]}  hxg6 {[%clk 0:00:04]} 33. Bxe3 {[%clk 0:00:06]}  Qg7 {[%clk 0:00:04]} 34. Bf4 {[%clk 0:00:03]}  g5 {[%clk 0:00:03]} 35. Bg3 {[%clk 0:00:02]}  Rf8 {[%clk 0:00:03]} 36. Qg2 {[%clk 0:00:03]}  Qg6 {[%clk 0:00:02]} 37. Qh2 {[%clk 0:00:02]}  Kf7 {[%clk 0:00:02]} 38. Rf1+ {[%clk 0:00:02]}  Ke8 {[%clk 0:00:02]} 39. Rxf8+ {[%clk 0:00:03]}  Kxf8 {[%clk 0:00:03]} 40. Qf2+ {[%clk 0:00:04]}  Kg7 {[%clk 0:00:03]} 41. Qf3 {[%clk 0:00:04]}  Qf7 {[%clk 0:00:03]} 42. Qxf7+ {[%clk 0:00:04]}  Kxf7 {[%clk 0:00:04]} 43. Kd2 {[%clk 0:00:05]}  Ke7 {[%clk 0:00:05]} 44. Kd3 {[%clk 0:00:05]}  Kd7 {[%clk 0:00:05]} 45. Kc4 {[%clk 0:00:06]}  Kc6 {[%clk 0:00:05]} 46. a4 {[%clk 0:00:06]}  a6 {[%clk 0:00:06]} 47. c3 {[%clk 0:00:06]}  b5+ {[%clk 0:00:07]} 48. axb5+ {[%clk 0:00:06]}  axb5+ {[%clk 0:00:08]} 49. Kd3 {[%clk 0:00:07]}  Kd5 {[%clk 0:00:08]} 50. cxd4 {[%clk 0:00:07]}  c4+ {[%clk 0:00:07]} 51. Kc3 {[%clk 0:00:07]}  Ke4 {[%clk 0:00:08]} 52. Bh2 {[%clk 0:00:08]}  Kf3 {[%clk 0:00:08]} 53. d5 {[%clk 0:00:08]}  exd5 {[%clk 0:00:08]} 54. e6 {[%clk 0:00:09]}  Ke3 {[%clk 0:00:08]} 55. Bg1+ {[%clk 0:00:09]}  Kf4 {[%clk 0:00:08]} 56. e7 {[%clk 0:00:09]} 1-0


[Site "https://www.chess.com"]

[Event "Titled Tuesday Blitz October 04 Early 2022"]
[White "Vaishali, Rameshbabu"]
[Black "Bharath Subramaniyam H"]
[WhiteFideId "5091756"]
[BlackFideId "46634827"]
[WhiteElo "2351"]
[BlackElo "2395"]
[Result "0-1"]
[Round "05"]
[TimeControl "180+1"]
[Date "2022.10.04"]
[WhiteClock "0:00:02"]
[BlackClock "0:01:07"]

1. e4 {[%clk 0:03:00]}  c5 {[%clk 0:02:58]} 2. Nf3 {[%clk 0:02:57]}  Nf6 {[%clk 0:02:57]} 3. e5 {[%clk 0:02:56]}  Nd5 {[%clk 0:02:57]} 4. Nc3 {[%clk 0:02:56]}  Nxc3 {[%clk 0:02:57]} 5. dxc3 {[%clk 0:02:56]}  Nc6 {[%clk 0:02:58]} 6. Bf4 {[%clk 0:02:54]}  Qb6 {[%clk 0:02:58]} 7. Rb1 {[%clk 0:02:52]}  Qc7 {[%clk 0:02:58]} 8. Qd2 {[%clk 0:02:51]}  e6 {[%clk 0:02:56]} 9. h4 {[%clk 0:02:45]}  b6 {[%clk 0:02:54]} 10. h5 {[%clk 0:02:44]}  h6 {[%clk 0:02:53]} 11. Bd3 {[%clk 0:02:33]}  Bb7 {[%clk 0:02:53]} 12. Be4 {[%clk 0:02:18]}  O-O-O {[%clk 0:02:46]} 13. O-O {[%clk 0:02:12]}  Ne7 {[%clk 0:02:40]} 14. Bxb7+ {[%clk 0:02:03]}  Qxb7 {[%clk 0:02:41]} 15. c4 {[%clk 0:02:03]}  g5 {[%clk 0:02:36]} 16. hxg6 {[%clk 0:02:02]}  Nxg6 {[%clk 0:02:36]} 17. Bg3 {[%clk 0:01:50]}  h5 {[%clk 0:02:33]} 18. Nh4 {[%clk 0:01:49]}  Be7 {[%clk 0:02:24]} 19. Nxg6 {[%clk 0:01:27]}  fxg6 {[%clk 0:02:25]} 20. Rbd1 {[%clk 0:01:14]}  h4 {[%clk 0:02:20]} 21. Bh2 {[%clk 0:01:13]}  h3 {[%clk 0:02:20]} 22. f3 {[%clk 0:01:08]}  hxg2 {[%clk 0:02:14]} 23. Kxg2 {[%clk 0:01:08]}  g5 {[%clk 0:02:11]} 24. Qe3 {[%clk 0:00:46]}  Rh4 {[%clk 0:02:07]} 25. Bg3 {[%clk 0:00:45]}  Rxc4 {[%clk 0:02:06]} 26. c3 {[%clk 0:00:44]}  g4 {[%clk 0:01:53]} 27. Rf2 {[%clk 0:00:22]}  Rf8 {[%clk 0:01:48]} 28. Qd3 {[%clk 0:00:12]}  gxf3+ {[%clk 0:01:39]} 29. Rxf3 {[%clk 0:00:10]}  Rg4 {[%clk 0:01:30]} 30. Kf2 {[%clk 0:00:09]}  Rgg8 {[%clk 0:01:16]} 31. Bf4 {[%clk 0:00:06]}  c4 {[%clk 0:01:12]} 32. Qxc4+ {[%clk 0:00:04]}  Bc5+ {[%clk 0:01:12]} 33. Re3 {[%clk 0:00:02]}  Qg2+ {[%clk 0:01:08]} 34. Ke1 {[%clk 0:00:02]}  Qg1+ {[%clk 0:01:07]} 35. Kd2 {[%clk 0:00:02]}  Qf2+ {[%clk 0:01:07]} 0-1


[Site "https://www.chess.com"]

[Event "Titled Tuesday Blitz October 04 Early 2022"]
[White "Vasquez Schroeder, Rodrigo"]
[Black "Visakh N R"]
[WhiteFideId "3400042"]
[BlackFideId "25012223"]
[WhiteElo "2577"]
[BlackElo "2466"]
[Result "1-0"]
[Round "05"]
[TimeControl "180+1"]
[Date "2022.10.04"]
[WhiteClock "0:01:07"]
[BlackClock "0:01:29"]

1. e4 {[%clk 0:03:00]}  e5 {[%clk 0:02:57]} 2. Nf3 {[%clk 0:03:00]}  Nf6 {[%clk 0:02:58]} 3. d3 {[%clk 0:02:58]}  Nc6 {[%clk 0:02:57]} 4. c3 {[%clk 0:02:57]}  g6 {[%clk 0:02:54]} 5. g3 {[%clk 0:02:56]}  Bg7 {[%clk 0:02:54]} 6. Bg2 {[%clk 0:02:57]}  O-O {[%clk 0:02:55]} 7. O-O {[%clk 0:02:57]}  d5 {[%clk 0:02:55]} 8. Qc2 {[%clk 0:02:54]}  dxe4 {[%clk 0:02:53]} 9. dxe4 {[%clk 0:02:54]}  a5 {[%clk 0:02:54]} 10. a4 {[%clk 0:02:49]}  Qe7 {[%clk 0:02:54]} 11. b3 {[%clk 0:02:48]}  Rd8 {[%clk 0:02:53]} 12. Nbd2 {[%clk 0:02:40]}  b6 {[%clk 0:02:52]} 13. Ba3 {[%clk 0:02:33]}  Qe8 {[%clk 0:02:50]} 14. Rfe1 {[%clk 0:02:31]}  Ba6 {[%clk 0:02:50]} 15. Bf1 {[%clk 0:02:31]}  Bxf1 {[%clk 0:02:50]} 16. Kxf1 {[%clk 0:02:30]}  Bf8 {[%clk 0:02:49]} 17. Bxf8 {[%clk 0:02:24]}  Qxf8 {[%clk 0:02:49]} 18. Nc4 {[%clk 0:02:25]}  Qc5 {[%clk 0:02:49]} 19. Kg2 {[%clk 0:02:24]}  Rd7 {[%clk 0:02:42]} 20. Rad1 {[%clk 0:02:22]}  Rad8 {[%clk 0:02:42]} 21. Rxd7 {[%clk 0:02:22]}  Rxd7 {[%clk 0:02:43]} 22. h3 {[%clk 0:02:18]}  Ne8 {[%clk 0:02:42]} 23. Rd1 {[%clk 0:02:15]}  Rxd1 {[%clk 0:02:42]} 24. Qxd1 {[%clk 0:02:15]}  Nd6 {[%clk 0:02:42]} 25. Nxd6 {[%clk 0:02:09]}  cxd6 {[%clk 0:02:39]} 26. Qd3 {[%clk 0:02:08]}  Nd8 {[%clk 0:02:31]} 27. Nd2 {[%clk 0:02:06]}  Ne6 {[%clk 0:02:08]} 28. Nc4 {[%clk 0:02:02]}  b5 {[%clk 0:02:08]} 29. Nxd6 {[%clk 0:01:56]}  bxa4 {[%clk 0:02:08]} 30. bxa4 {[%clk 0:01:57]}  Qc6 {[%clk 0:02:09]} 31. Qd5 {[%clk 0:01:49]}  Qxd5 {[%clk 0:02:06]} 32. exd5 {[%clk 0:01:49]}  Nc5 {[%clk 0:02:07]} 33. c4 {[%clk 0:01:48]}  Nxa4 {[%clk 0:02:07]} 34. Nb7 {[%clk 0:01:47]}  Kf8 {[%clk 0:01:55]} 35. c5 {[%clk 0:01:41]}  Ke7 {[%clk 0:01:55]} 36. c6 {[%clk 0:01:41]}  Nb6 {[%clk 0:01:45]} 37. d6+ {[%clk 0:01:41]}  Ke6 {[%clk 0:01:45]} 38. d7 {[%clk 0:01:33]}  Nxd7 {[%clk 0:01:45]} 39. cxd7 {[%clk 0:01:34]}  Kxd7 {[%clk 0:01:46]} 40. Nxa5 {[%clk 0:01:35]}  f5 {[%clk 0:01:46]} 41. f4 {[%clk 0:01:32]}  Ke6 {[%clk 0:01:42]} 42. Kf3 {[%clk 0:01:27]}  exf4 {[%clk 0:01:42]} 43. Kxf4 {[%clk 0:01:25]}  h6 {[%clk 0:01:42]} 44. Nc4 {[%clk 0:01:24]}  g5+ {[%clk 0:01:41]} 45. Kf3 {[%clk 0:01:24]}  Kd5 {[%clk 0:01:40]} 46. Ne3+ {[%clk 0:01:20]}  Ke5 {[%clk 0:01:41]} 47. g4 {[%clk 0:01:13]}  f4 {[%clk 0:01:41]} 48. Nf1 {[%clk 0:01:08]}  Kf6 {[%clk 0:01:35]} 49. Ke4 {[%clk 0:01:07]}  Kg6 {[%clk 0:01:34]} 50. Ke5 {[%clk 0:01:06]}  h5 {[%clk 0:01:33]} 51. Ke6 {[%clk 0:01:06]}  hxg4 {[%clk 0:01:29]} 52. hxg4 {[%clk 0:01:07]} 1-0


[Site "https://www.chess.com"]

[Event "Titled Tuesday Blitz October 04 Early 2022"]
[White "Vignesh, N R"]
[Black "Galchenko, Matvey"]
[WhiteFideId "25012215"]
[BlackFideId "24175480"]
[WhiteElo "2386"]
[BlackElo "2423"]
[Result "1-0"]
[Round "05"]
[TimeControl "180+1"]
[Date "2022.10.04"]
[WhiteClock "0:01:07"]
[BlackClock "0:00:21"]

1. d4 {[%clk 0:02:58]}  Nf6 {[%clk 0:02:49]} 2. c4 {[%clk 0:02:58]}  c5 {[%clk 0:02:49]} 3. d5 {[%clk 0:02:58]}  e6 {[%clk 0:02:50]} 4. Nc3 {[%clk 0:02:58]}  exd5 {[%clk 0:02:50]} 5. cxd5 {[%clk 0:02:59]}  d6 {[%clk 0:02:51]} 6. e4 {[%clk 0:02:53]}  g6 {[%clk 0:02:52]} 7. Be2 {[%clk 0:02:52]}  Bg7 {[%clk 0:02:52]} 8. Be3 {[%clk 0:02:52]}  O-O {[%clk 0:02:52]} 9. Nf3 {[%clk 0:02:52]}  Bg4 {[%clk 0:02:52]} 10. Nd2 {[%clk 0:02:52]}  Bxe2 {[%clk 0:02:53]} 11. Qxe2 {[%clk 0:02:53]}  a6 {[%clk 0:02:53]} 12. a4 {[%clk 0:02:52]}  Re8 {[%clk 0:02:54]} 13. O-O {[%clk 0:02:52]}  Nbd7 {[%clk 0:02:54]} 14. h3 {[%clk 0:02:50]}  Rb8 {[%clk 0:02:53]} 15. Bf4 {[%clk 0:02:44]}  Qc7 {[%clk 0:02:46]} 16. Nc4 {[%clk 0:02:41]}  Bf8 {[%clk 0:02:46]} 17. a5 {[%clk 0:02:36]}  Nxe4 {[%clk 0:02:35]} 18. Nxe4 {[%clk 0:02:33]}  f5 {[%clk 0:02:36]} 19. Bxd6 {[%clk 0:02:20]}  Bxd6 {[%clk 0:02:33]} 20. Ncxd6 {[%clk 0:02:20]}  Qxd6 {[%clk 0:02:29]} 21. Nxd6 {[%clk 0:02:19]}  Rxe2 {[%clk 0:02:30]} 22. Nc4 {[%clk 0:02:12]}  Nf6 {[%clk 0:02:28]} 23. d6 {[%clk 0:02:10]}  Rbe8 {[%clk 0:02:25]} 24. Rad1 {[%clk 0:02:04]}  Kf8 {[%clk 0:02:18]} 25. Rd3 {[%clk 0:01:59]}  Rd8 {[%clk 0:02:16]} 26. Rfd1 {[%clk 0:01:52]}  Ne4 {[%clk 0:02:04]} 27. f3 {[%clk 0:01:49]}  Ng3 {[%clk 0:01:46]} 28. Rb3 {[%clk 0:01:43]}  Rc2 {[%clk 0:01:37]} 29. Ne3 {[%clk 0:01:41]}  Re2 {[%clk 0:01:33]} 30. Nf1 {[%clk 0:01:40]}  f4 {[%clk 0:01:10]} 31. Rxb7 {[%clk 0:01:34]}  h5 {[%clk 0:00:58]} 32. Rh7 {[%clk 0:01:25]}  Kg8 {[%clk 0:00:55]} 33. Re7 {[%clk 0:01:24]}  Rxd6 {[%clk 0:00:39]} 34. Rxd6 {[%clk 0:01:22]}  Rxe7 {[%clk 0:00:39]} 35. Nxg3 {[%clk 0:01:21]}  fxg3 {[%clk 0:00:38]} 36. Rxg6+ {[%clk 0:01:21]}  Kf7 {[%clk 0:00:39]} 37. Rxg3 {[%clk 0:01:20]}  Kf6 {[%clk 0:00:30]} 38. h4 {[%clk 0:01:19]}  Rb7 {[%clk 0:00:26]} 39. Rg5 {[%clk 0:01:19]}  c4 {[%clk 0:00:25]} 40. Rc5 {[%clk 0:01:11]}  Rb4 {[%clk 0:00:21]} 41. Kh2 {[%clk 0:01:11]}  Kf7 {[%clk 0:00:20]} 42. Kg3 {[%clk 0:01:10]}  Kg7 {[%clk 0:00:19]} 43. Rxh5 {[%clk 0:01:08]}  Rxb2 {[%clk 0:00:20]} 44. Rc5 {[%clk 0:01:09]}  Rb5 {[%clk 0:00:20]} 45. Rxc4 {[%clk 0:01:08]}  Rxa5 {[%clk 0:00:20]} 46. Rc6 {[%clk 0:01:08]}  Rb5 {[%clk 0:00:21]} 47. Rxa6 {[%clk 0:01:07]} 1-0


[Site "https://www.chess.com"]

[Event "Titled Tuesday Blitz October 04 Early 2022"]
[White "Vlassov, Nikolai"]
[Black "Xu, Yi"]
[WhiteFideId "4103360"]
[BlackFideId "8605564"]
[WhiteElo "2324"]
[BlackElo "2471"]
[Result "1/2-1/2"]
[Round "05"]
[TimeControl "180+1"]
[Date "2022.10.04"]
[WhiteClock "0:00:42"]
[BlackClock "0:00:58"]

1. e4 {[%clk 0:03:00]}  c5 {[%clk 0:02:59]} 2. c3 {[%clk 0:02:59]}  Nf6 {[%clk 0:02:59]} 3. e5 {[%clk 0:02:59]}  Nd5 {[%clk 0:02:59]} 4. d4 {[%clk 0:03:00]}  cxd4 {[%clk 0:02:59]} 5. cxd4 {[%clk 0:03:00]}  d6 {[%clk 0:02:59]} 6. Bc4 {[%clk 0:03:01]}  Nb6 {[%clk 0:02:59]} 7. Bb3 {[%clk 0:03:01]}  dxe5 {[%clk 0:02:50]} 8. Qh5 {[%clk 0:03:00]}  e6 {[%clk 0:02:47]} 9. dxe5 {[%clk 0:03:01]}  Nc6 {[%clk 0:02:45]} 10. Nc3 {[%clk 0:03:00]}  g6 {[%clk 0:02:42]} 11. Qg5 {[%clk 0:03:00]}  Qxg5 {[%clk 0:02:25]} 12. Bxg5 {[%clk 0:03:01]}  Be7 {[%clk 0:02:26]} 13. Bxe7 {[%clk 0:02:57]}  Kxe7 {[%clk 0:02:27]} 14. f4 {[%clk 0:02:53]}  Nd4 {[%clk 0:02:23]} 15. O-O-O {[%clk 0:02:45]}  Nxb3+ {[%clk 0:02:22]} 16. axb3 {[%clk 0:02:44]}  Bd7 {[%clk 0:02:22]} 17. Nf3 {[%clk 0:02:42]}  Bc6 {[%clk 0:02:23]} 18. Rd3 {[%clk 0:02:34]}  Rad8 {[%clk 0:02:22]} 19. Rhd1 {[%clk 0:02:34]}  Rxd3 {[%clk 0:02:22]} 20. Rxd3 {[%clk 0:02:34]}  Nd5 {[%clk 0:02:17]} 21. Nxd5+ {[%clk 0:02:28]}  Bxd5 {[%clk 0:02:18]} 22. g3 {[%clk 0:02:21]}  Rc8+ {[%clk 0:02:14]} 23. Kd2 {[%clk 0:02:19]}  Be4 {[%clk 0:02:13]} 24. Re3 {[%clk 0:02:15]}  Rd8+ {[%clk 0:01:55]} 25. Ke2 {[%clk 0:02:06]}  Bxf3+ {[%clk 0:01:55]} 26. Rxf3 {[%clk 0:02:06]}  Rd4 {[%clk 0:01:52]} 27. Rc3 {[%clk 0:01:57]}  Rb4 {[%clk 0:01:52]} 28. Kd2 {[%clk 0:01:41]}  Kd7 {[%clk 0:01:51]} 29. Rd3+ {[%clk 0:01:39]}  Kc7 {[%clk 0:01:50]} 30. Rc3+ {[%clk 0:01:39]}  Kb6 {[%clk 0:01:42]} 31. Rd3 {[%clk 0:01:39]}  Kc6 {[%clk 0:01:42]} 32. Kc3 {[%clk 0:01:19]}  Re4 {[%clk 0:01:42]} 33. Rd8 {[%clk 0:01:09]}  Re2 {[%clk 0:01:40]} 34. Rf8 {[%clk 0:01:06]}  Rxh2 {[%clk 0:01:40]} 35. Rxf7 {[%clk 0:01:06]}  Rg2 {[%clk 0:01:40]} 36. Re7 {[%clk 0:00:49]}  Rxg3+ {[%clk 0:01:39]} 37. Kc4 {[%clk 0:00:47]}  b5+ {[%clk 0:01:33]} 38. Kd4 {[%clk 0:00:47]}  Rxb3 {[%clk 0:01:27]} 39. Rxe6+ {[%clk 0:00:47]}  Kd7 {[%clk 0:01:28]} 40. Ra6 {[%clk 0:00:46]}  Rxb2 {[%clk 0:01:26]} 41. Rxa7+ {[%clk 0:00:46]}  Ke6 {[%clk 0:01:26]} 42. Ra6+ {[%clk 0:00:42]}  Ke7 {[%clk 0:01:18]} 43. Ra7+ {[%clk 0:00:41]}  Ke6 {[%clk 0:01:17]} 44. Ra6+ {[%clk 0:00:42]}  Ke7 {[%clk 0:00:58]} 45. Ra7+ {[%clk 0:00:42]}  Ke6 {[%clk 0:00:58]} 1/2-1/2


[Site "https://www.chess.com"]

[Event "Titled Tuesday Blitz October 04 Early 2022"]
[White "Wong, Yinn Long"]
[Black "Sarana, Alexey"]
[WhiteFideId "5707684"]
[BlackFideId "24133795"]
[WhiteElo "2271"]
[BlackElo "2689"]
[Result "0-1"]
[Round "05"]
[TimeControl "180+1"]
[Date "2022.10.04"]
[WhiteClock "0:00:06"]
[BlackClock "0:00:13"]

1. e4 {[%clk 0:03:00]}  c5 {[%clk 0:02:56]} 2. Nc3 {[%clk 0:03:01]}  d6 {[%clk 0:02:56]} 3. g3 {[%clk 0:03:01]}  g6 {[%clk 0:02:56]} 4. Bg2 {[%clk 0:03:01]}  Bg7 {[%clk 0:02:56]} 5. d3 {[%clk 0:03:02]}  Nc6 {[%clk 0:02:56]} 6. Nge2 {[%clk 0:03:02]}  Rb8 {[%clk 0:02:56]} 7. Be3 {[%clk 0:03:02]}  b5 {[%clk 0:02:52]} 8. Qd2 {[%clk 0:03:02]}  b4 {[%clk 0:02:52]} 9. Nd1 {[%clk 0:03:02]}  Bg4 {[%clk 0:02:46]} 10. f3 {[%clk 0:02:51]}  Bd7 {[%clk 0:02:46]} 11. O-O {[%clk 0:02:49]}  Nf6 {[%clk 0:02:45]} 12. a3 {[%clk 0:02:45]}  a5 {[%clk 0:02:41]} 13. axb4 {[%clk 0:02:46]}  axb4 {[%clk 0:02:42]} 14. Bh6 {[%clk 0:02:34]}  O-O {[%clk 0:02:40]} 15. Bxg7 {[%clk 0:02:34]}  Kxg7 {[%clk 0:02:41]} 16. Ne3 {[%clk 0:02:34]}  Nd4 {[%clk 0:02:34]} 17. Nxd4 {[%clk 0:02:17]}  cxd4 {[%clk 0:02:35]} 18. Nc4 {[%clk 0:02:18]}  Be6 {[%clk 0:02:29]} 19. b3 {[%clk 0:01:49]}  Qc7 {[%clk 0:02:17]} 20. Ra4 {[%clk 0:01:44]}  Qc5 {[%clk 0:02:13]} 21. Ra5 {[%clk 0:01:41]}  Rb5 {[%clk 0:02:11]} 22. Rxb5 {[%clk 0:01:38]}  Qxb5 {[%clk 0:02:11]} 23. Ra1 {[%clk 0:01:39]}  Rb8 {[%clk 0:02:06]} 24. Ra5 {[%clk 0:01:30]}  Qc6 {[%clk 0:02:05]} 25. Qf2 {[%clk 0:01:28]}  Bxc4 {[%clk 0:02:03]} 26. dxc4 {[%clk 0:01:24]}  e5 {[%clk 0:02:00]} 27. Bf1 {[%clk 0:01:19]}  Qb6 {[%clk 0:01:56]} 28. Rb5 {[%clk 0:01:06]}  Qa7 {[%clk 0:01:56]} 29. Rxb8 {[%clk 0:01:06]}  Qxb8 {[%clk 0:01:56]} 30. Qe1 {[%clk 0:01:02]}  Nd7 {[%clk 0:01:54]} 31. Qa1 {[%clk 0:01:02]}  Qb6 {[%clk 0:01:51]} 32. Bd3 {[%clk 0:01:02]}  Nc5 {[%clk 0:01:50]} 33. Qa8 {[%clk 0:01:02]}  Qc7 {[%clk 0:01:50]} 34. Kg2 {[%clk 0:00:56]}  h5 {[%clk 0:01:51]} 35. Kf2 {[%clk 0:00:50]}  h4 {[%clk 0:01:48]} 36. Kg2 {[%clk 0:00:50]}  Qb6 {[%clk 0:01:26]} 37. Kh3 {[%clk 0:00:40]}  hxg3 {[%clk 0:01:22]} 38. hxg3 {[%clk 0:00:40]}  Qc7 {[%clk 0:01:21]} 39. Kg2 {[%clk 0:00:41]}  Ne6 {[%clk 0:01:19]} 40. Qe8 {[%clk 0:00:34]}  Qd8 {[%clk 0:00:50]} 41. Qxd8 {[%clk 0:00:26]}  Nxd8 {[%clk 0:00:51]} 42. f4 {[%clk 0:00:25]}  Ne6 {[%clk 0:00:49]} 43. Kf3 {[%clk 0:00:26]}  Kf6 {[%clk 0:00:49]} 44. Bf1 {[%clk 0:00:26]}  Nc5 {[%clk 0:00:49]} 45. Bd3 {[%clk 0:00:26]}  Kg7 {[%clk 0:00:49]} 46. Bf1 {[%clk 0:00:26]}  Kh6 {[%clk 0:00:49]} 47. Bd3 {[%clk 0:00:19]}  Kh5 {[%clk 0:00:49]} 48. Kg2 {[%clk 0:00:17]}  Kh6 {[%clk 0:00:38]} 49. Kf3 {[%clk 0:00:18]}  Kg7 {[%clk 0:00:36]} 50. Kg4 {[%clk 0:00:16]}  f5+ {[%clk 0:00:19]} 51. exf5 {[%clk 0:00:11]}  e4 {[%clk 0:00:19]} 52. Be2 {[%clk 0:00:11]}  d3 {[%clk 0:00:19]} 53. cxd3 {[%clk 0:00:12]}  exd3 {[%clk 0:00:20]} 54. Bd1 {[%clk 0:00:12]}  Ne4 {[%clk 0:00:19]} 55. Kf3 {[%clk 0:00:05]}  Nc3 {[%clk 0:00:19]} 56. Ke3 {[%clk 0:00:04]}  Nxd1+ {[%clk 0:00:18]} 57. Kd2 {[%clk 0:00:04]}  Nc3 {[%clk 0:00:11]} 58. fxg6 {[%clk 0:00:02]}  Ne4+ {[%clk 0:00:11]} 59. Kxd3 {[%clk 0:00:03]}  Nc5+ {[%clk 0:00:12]} 60. Kd4 {[%clk 0:00:03]}  Nxb3+ {[%clk 0:00:12]} 61. Kd5 {[%clk 0:00:01]}  Nd2 {[%clk 0:00:12]} 62. f5 {[%clk 0:00:01]}  b3 {[%clk 0:00:12]} 63. Ke6 {[%clk 0:00:02]}  Ne4 {[%clk 0:00:12]} 64. g4 {[%clk 0:00:02]}  b2 {[%clk 0:00:12]} 65. g5 {[%clk 0:00:03]}  Nxg5+ {[%clk 0:00:12]} 66. Ke7 {[%clk 0:00:03]}  b1=Q {[%clk 0:00:13]} 67. f6+ {[%clk 0:00:04]}  Kxg6 {[%clk 0:00:13]} 68. f7 {[%clk 0:00:05]}  Qe4+ {[%clk 0:00:14]} 69. Kf8 {[%clk 0:00:06]}  Qe6 {[%clk 0:00:13]} 0-1


[Site "https://www.chess.com"]

[Event "Titled Tuesday Blitz October 04 Early 2022"]
[White "Abdisalimov, Abdimalik"]
[Black "Matinian, Nikita"]
[WhiteFideId "14206323"]
[BlackFideId "24129100"]
[WhiteElo "2401"]
[BlackElo "2422"]
[Result "1-0"]
[Round "06"]
[TimeControl "180+1"]
[Date "2022.10.04"]
[WhiteClock "0:00:27"]
[BlackClock "0:00:13"]

1. d4 {[%clk 0:02:59]}  d6 {[%clk 0:03:00]} 2. e4 {[%clk 0:02:52]}  g6 {[%clk 0:03:00]} 3. Nc3 {[%clk 0:02:50]}  Nf6 {[%clk 0:03:01]} 4. f4 {[%clk 0:02:49]}  Bg7 {[%clk 0:03:00]} 5. Nf3 {[%clk 0:02:50]}  O-O {[%clk 0:03:00]} 6. Bd3 {[%clk 0:02:41]}  Nc6 {[%clk 0:02:58]} 7. e5 {[%clk 0:02:39]}  dxe5 {[%clk 0:02:55]} 8. dxe5 {[%clk 0:02:40]}  Nd5 {[%clk 0:02:49]} 9. Qd2 {[%clk 0:02:40]}  Nxc3 {[%clk 0:02:39]} 10. Qxc3 {[%clk 0:02:41]}  f6 {[%clk 0:02:40]} 11. Bb5 {[%clk 0:02:22]}  fxe5 {[%clk 0:02:36]} 12. Bxc6 {[%clk 0:02:22]}  bxc6 {[%clk 0:02:31]} 13. Nxe5 {[%clk 0:02:22]}  Bxe5 {[%clk 0:02:28]} 14. Qxe5 {[%clk 0:02:19]}  Rf5 {[%clk 0:02:25]} 15. Qe2 {[%clk 0:01:55]}  a5 {[%clk 0:01:21]} 16. O-O {[%clk 0:01:41]}  Ba6 {[%clk 0:01:21]} 17. Qe6+ {[%clk 0:01:40]}  Kf8 {[%clk 0:01:21]} 18. Re1 {[%clk 0:01:41]}  Qd6 {[%clk 0:01:21]} 19. Qe4 {[%clk 0:01:24]}  Re8 {[%clk 0:01:14]} 20. b3 {[%clk 0:01:09]}  Kf7 {[%clk 0:00:57]} 21. c4 {[%clk 0:00:59]}  Bc8 {[%clk 0:00:37]} 22. Bb2 {[%clk 0:00:57]}  Qxf4 {[%clk 0:00:35]} 23. Qe2 {[%clk 0:00:49]}  e5 {[%clk 0:00:25]} 24. Rf1 {[%clk 0:00:41]}  Qg5 {[%clk 0:00:22]} 25. Qe4 {[%clk 0:00:40]}  Qf6 {[%clk 0:00:19]} 26. Rae1 {[%clk 0:00:35]}  Bd7 {[%clk 0:00:19]} 27. g4 {[%clk 0:00:29]}  Rf4 {[%clk 0:00:12]} 28. Rxf4 {[%clk 0:00:28]}  Qxf4 {[%clk 0:00:13]} 29. Rf1 {[%clk 0:00:27]} 1-0


[Site "https://www.chess.com"]